lending/lending_fUSD_20250130
["ID","MTS","AMOUNT","RATE_DAILY","PERIOD"]
[350994996,1738272663565,-2157.38,0.00019178,2]
[350994997,1738272663576,-2367.07,0.00019178,2]
[350994998,1738272663585,-500.0,0.00019178,2]
[350994999,1738272663596,-565.35,0.00019178,2]
[350995000,1738272663606,-1866.83,0.00019178,2]
[350995001,1738272663616,-560.87,0.00019178,2]
[350995002,1738272663625,-416.62565022,0.00019178,2]
[350995003,1738272663635,-1277.22,0.00019178,2]
[350995004,1738272663645,-1325.83,0.00019178,2]
[350995005,1738272663655,-500.0,0.00019178,2]
[350995006,1738272663664,-2414.25,0.00019178,2]
[350995007,1738272663674,-500.0,0.00019178,2]
[350995008,1738272663684,-507.46599532,0.00019178,2]
[350995009,1738272663694,-339.58312417,0.00019178,2]
[350995010,1738272663706,-783.15,0.00019178,2]
[350995011,1738272663716,-1828.68,0.00019178,2]
[350995012,1738272663726,-500.0,0.00019178,2]
[350995013,1738272663737,-500.0,0.00019178,2]
[350995014,1738272663747,-500.0,0.00019178,2]
[350995015,1738272663757,-2030.89,0.00019178,2]
[350995016,1738272663767,-7069.4,0.00019178,2]
[350995017,1738272663777,-192.10183018,0.00019178,2]
[350995018,1738272663788,-789.27,0.00019178,2]
[350995019,1738272663798,-500.0,0.00019178,2]
[350995020,1738272663808,-2259.46,0.00019178,2]
[350995021,1738272663818,-1142.1,0.00019178,2]
[350995022,1738272663829,-500.0,0.00019178,2]
[350995023,1738272663839,-500.0,0.00019178,2]
[350995024,1738272663850,-501.82926816,0.00019178,2]
[350995025,1738272663860,-500.0,0.00019178,2]
[350995026,1738272663870,-500.0,0.00019178,2]
[350995027,1738272663880,-2711.0,0.00019178,2]
[350995028,1738272663891,-150.61,0.00019178,2]
[350995029,1738272663901,-2649.2960625,0.00019182,2]
[350995030,1738272663912,-792.0,0.00019188,2]
[350995031,1738272663922,-200.0,0.0001919,2]
[350995032,1738272663932,-200.0,0.0001919,2]
[350995033,1738272663943,-296.44363703,0.00019192,2]
[350995034,1738272663952,-2649.2960625,0.00019198,2]
[350995035,1738272663962,-615.99,0.00019199,3]
[350995036,1738272663973,-300.0,0.00019199,2]
[350995037,1738272663983,-300.0,0.00019199,2]
[350995038,1738272663993,-195.56032997,0.00019199,2]
[350995039,1738272664003,-100043.17962855,0.000192,4]
[350995040,1738272664013,-1000.0,0.000192,2]
[350995041,1738272664023,-2649.2960625,0.00019215,2]
[350995042,1738272664033,-2581.71408093,0.00019215,2]
[350995043,1738272664045,-368.62978601,0.00019215,2]
[350995044,1738272664054,-403.54442649,0.00019227,2]
[350995045,1738272664064,-217.0,0.0001925,2]
[350995046,1738272664075,-200.0,0.00019254,2]
[350995047,1738272664086,-150.27,0.00019257,2]
[350995048,1738272664097,-205.0,0.0001927,2]
[350995049,1738272664110,-403.54442649,0.00019292,2]
[350995050,1738272664122,-300.0,0.00019299,2]
[350995051,1738272664132,-300.0,0.00019299,2]
[350995052,1738272664143,-22946.17320648,0.000193,2]
[350995053,1738272665155,-324.61,0.000193,2]
[350995054,1738272665199,-245.65134,0.00019177,2]
[350995055,1738272665210,-12464.95133853,0.000193,2]
[350995056,1738272665267,-556.69,0.00019178,2]
[350995057,1738272665277,-2711.2142103,0.000193,2]
[350995058,1738272665327,-320.1499964,0.000193,2]
[350995059,1738272665961,-628.82,0.00019178,2]
[350995060,1738272665972,-371.91324183,0.000193,2]
[350995082,1738273596125,-364.0,0.000137,5]
[350995083,1738273596147,-150.0,0.00014111,2]
[350995084,1738273596170,-150.0,0.00014423,2]
[350995085,1738273596192,-150.0,0.00014824,2]
[350995086,1738273596214,-150.0,0.0001518,2]
[350995087,1738273596237,-150.0,0.0001518,2]
[350995088,1738273596259,-150.0,0.000154,2]
[350995089,1738273596281,-315.39,0.0001565,2]
[350995090,1738273596303,-215.98,0.00017497,2]
[350995091,1738273596324,-150.0,0.00017507,2]
[350995092,1738273596345,-250.0,0.00017532,2]
[350995093,1738273596366,-500.0,0.00017588,2]
[350995094,1738273596388,-1000.0,0.00017619,2]
[350995095,1738273596411,-224.09,0.00017658,2]
[350995096,1738273596434,-616.94447064,0.00017683,2]
[350995111,1738273831715,-1000.09,0.00017568,2]
[350995136,1738273832334,-22.99,0.00017568,2]
[350995138,1738273832345,-187.4920227,0.00017584,2]
[350995140,1738273832356,-1060.47753673,0.00017584,2]
[350995142,1738273832366,-150.0,0.00017633,2]
[350995144,1738273832376,-150.0,0.00017633,2]
[350995146,1738273832385,-150.0,0.00017665,2]
[350995148,1738273832394,-150.0,0.00017665,2]
[350995150,1738273832404,-2509.50768019,0.00017683,2]
[350995152,1738273832416,-2609.49592439,0.00017683,2]
[350995154,1738273832427,-6433.14192478,0.00017683,2]
[350995156,1738273832437,-370.33,0.00017684,2]
[350995158,1738273832447,-298.86,0.00017694,30]
[350995160,1738273832456,-490.10052823,0.00017696,2]
[350995163,1738273832467,-2073.0,0.00017696,2]
[350995177,1738273832538,-4072.02339887,0.00017696,2]
[350995179,1738273832550,-379.50478889,0.00017696,2]
[350995182,1738273832561,-24761.47377929,0.00017696,2]
[350995257,1738273837638,-433.39763583,0.00017696,2]
[350995258,1738273837650,-13338.49986889,0.00017696,2]
[350995259,1738273837660,-426.27,0.00017746,2]
[350995260,1738273837669,-1697.91,0.00017843,2]
[350995261,1738273837679,-150.0,0.00017871,2]
[350995262,1738273837689,-450.0,0.00017874,2]
[350995263,1738273837698,-1000.0,0.00017882,2]
[350995264,1738273837709,-3888.34601145,0.000179,2]
[350995265,1738273837718,-315.39,0.00017914,2]
[350995266,1738273837728,-1000.0,0.00017928,2]
[350995267,1738273837738,-865.7,0.00017966,2]
[350995268,1738273837748,-159.69,0.00018032,2]
[350995269,1738273837761,-3888.3460112,0.00018038,2]
[350995270,1738273837771,-500.0,0.00018068,2]
[350995271,1738273837781,-1000.0,0.00018068,2]
[350995272,1738273837791,-169.43,0.00018156,2]
[350995273,1738273837801,-3888.3460112,0.00018176,2]
[350995274,1738273837811,-1000.0,0.00018211,2]
[350995275,1738273837821,-539.008,0.00018237,2]
[350995276,1738273837832,-158.21,0.00018237,2]
[350995277,1738273837844,-3888.3460112,0.00018314,2]
[350995278,1738273837853,-150.0,0.00018354,2]
[350995279,1738273837862,-994.0,0.00018377,2]
[350995280,1738273837873,-173.37,0.00018407,2]
[350995281,1738273837883,-3888.3460112,0.00018452,2]
[350995282,1738273837894,-1000.0,0.00018537,2]
[350995283,1738273837903,-150.0,0.00018566,2]
[350995285,1738273837913,-3888.3460112,0.0001859,2]
[350995287,1738273837922,-1000.0,0.000186,2]
[350995289,1738273837932,-200.0,0.000186,6]
[350995291,1738273837941,-1000.0,0.00018647,2]
[350995293,1738273837951,-500.0,0.000187,6]
[350995295,1738273837961,-3888.3460112,0.00018728,2]
[350995297,1738273837971,-800.0,0.000188,6]
[350995299,1738273837980,-3888.3460112,0.00018866,2]
[350995301,1738273837990,-150.0,0.00018878,2]
[350995303,1738273838000,-170.5936,0.00018899,2]
[350995305,1738273838010,-1100.0,0.000189,6]
[350995307,1738273838020,-159.69,0.00018934,2]
[350995309,1738273838029,-25185.8650477,0.00019,5]
[350995311,1738273838039,-3888.3460112,0.00019003,2]
[350995313,1738273838049,-222.87142351,0.00019078,2]
[350995315,1738273838059,-195.56032997,0.00019078,2]
[350995317,1738273838069,-152.17950909,0.00019078,2]
[350995319,1738273838080,-183.89872995,0.00019078,2]
[350995321,1738273838089,-4955.3714,0.00019078,2]
[350995323,1738273838099,-1460.8756,0.00019078,2]
[350995325,1738273838108,-150.0,0.00019088,2]
[350995327,1738273838118,-3888.3460112,0.00019141,2]
[350995329,1738273838127,-500.0,0.00019145,2]
[350995331,1738273838136,-500.0,0.00019146,2]
[350995332,1738273838146,-222.87142351,0.00019154,2]
[350995335,1738273838156,-1000.0,0.00019164,2]
[350995337,1738273838165,-578.97,0.00019168,2]
[350995338,1738273838175,-500.0,0.00019173,2]
[350995340,1738273838185,-503.39868062,0.00019178,2]
[350995342,1738273838195,-258.08525873,0.00019178,2]
[350995344,1738273838204,-401.37094459,0.00019178,2]
[350995346,1738273838214,-500.0,0.00019178,2]
[350995348,1738273838224,-502.69763348,0.00019178,2]
[350995350,1738273838234,-500.0,0.00019178,2]
[350995352,1738273838243,-500.0,0.00019178,2]
[350995354,1738273838253,-334.01453175,0.00019178,2]
[350995356,1738273838263,-529.68151203,0.00019178,2]
[350995358,1738273838273,-500.0,0.00019178,2]
[350995360,1738273838283,-500.0,0.00019178,2]
[350995362,1738273838294,-1658.08,0.00019178,2]
[350995364,1738273838303,-500.0,0.00019178,2]
[350995366,1738273838313,-826.56,0.00019178,2]
[350995368,1738273838323,-500.0,0.00019178,2]
[350995370,1738273838334,-500.0,0.00019178,2]
[350995372,1738273838344,-500.0,0.00019178,2]
[350995375,1738273838355,-500.0,0.00019178,2]
[350995377,1738273838365,-500.0,0.00019178,2]
[350995379,1738273838374,-500.0,0.00019178,2]
[350995381,1738273838384,-500.0,0.00019178,2]
[350995383,1738273838394,-500.0,0.00019178,2]
[350995385,1738273838404,-500.0,0.00019178,2]
[350995387,1738273838414,-500.0,0.00019178,2]
[350995389,1738273838423,-500.0,0.00019178,2]
[350995391,1738273838433,-500.0,0.00019178,2]
[350995393,1738273838442,-500.0,0.00019178,2]
[350995395,1738273838451,-500.0,0.00019178,2]
[350995397,1738273838461,-500.0,0.00019178,2]
[350995399,1738273838471,-500.0,0.00019178,2]
[350995401,1738273838480,-500.0,0.00019178,2]
[350995403,1738273838489,-500.0,0.00019178,2]
[350995404,1738273838499,-507.84520989,0.00019178,2]
[350995406,1738273838510,-505.90113846,0.00019178,2]
[350995409,1738273838521,-500.0,0.00019178,2]
[350995411,1738273838531,-634.63261363,0.00019178,2]
[350995413,1738273838540,-500.0,0.00019178,2]
[350995414,1738273838550,-500.0,0.00019178,2]
[350995416,1738273838559,-500.0,0.00019178,2]
[350995419,1738273838570,-500.0,0.00019178,2]
[350995421,1738273838579,-500.0,0.00019178,2]
[350995423,1738273838589,-500.0,0.00019178,2]
[350995425,1738273838600,-500.0,0.00019178,2]
[350995427,1738273838609,-500.0,0.00019178,2]
[350995429,1738273838619,-500.0,0.00019178,2]
[350995431,1738273838629,-500.0,0.00019178,2]
[350995433,1738273838639,-500.0,0.00019178,2]
[350995435,1738273838648,-1367.48,0.00019178,2]
[350995437,1738273838659,-426.47128434,0.00019178,2]
[350995439,1738273838668,-500.0,0.00019178,2]
[350995441,1738273838677,-500.0,0.00019178,2]
[350995443,1738273838687,-500.0,0.00019178,2]
[350995445,1738273838696,-500.0,0.00019178,2]
[350995447,1738273838705,-638.73630753,0.00019178,2]
[350995449,1738273838715,-500.0,0.00019178,2]
[350995451,1738273838726,-221.60555751,0.00019178,2]
[350995453,1738273838735,-500.0,0.00019178,2]
[350995455,1738273838745,-592.37,0.00019178,2]
[350995457,1738273838756,-500.0,0.00019178,2]
[350995459,1738273838767,-500.0,0.00019178,2]
[350995461,1738273838776,-500.0,0.00019178,2]
[350995463,1738273838785,-500.0,0.00019178,2]
[350995465,1738273838795,-500.0,0.00019178,2]
[350995467,1738273838806,-500.0,0.00019178,2]
[350995469,1738273838816,-934.81,0.00019178,2]
[350995471,1738273838826,-1006.04,0.00019178,2]
[350995473,1738273838837,-463.84486891,0.00019178,2]
[350995501,1738273839837,-36.15513109,0.00019178,2]
[350995502,1738273839848,-500.0,0.00019178,2]
[350995503,1738273839858,-500.0,0.00019178,2]
[350995504,1738273839868,-500.0,0.00019178,2]
[350995505,1738273839879,-500.0,0.00019178,2]
[350995506,1738273839889,-500.0,0.00019178,2]
[350995507,1738273839898,-807.36,0.00019178,2]
[350995508,1738273839908,-500.0,0.00019178,2]
[350995509,1738273839918,-234.75486891,0.00019178,2]
[350995635,1738273844617,-1000.0,0.00019078,2]
[350995636,1738273844628,-265.24513109,0.00019178,2]
[350995637,1738273844637,-500.0,0.00019178,2]
[350995638,1738273844647,-500.0,0.00019178,2]
[350995639,1738273844656,-431.93457013,0.00019178,2]
[350995640,1738273844667,-68.06542987,0.00019178,2]
[350995641,1738273844677,-500.0,0.00019178,2]
[350995642,1738273844687,-500.0,0.00019178,2]
[350995643,1738273844696,-500.0,0.00019178,2]
[350995644,1738273844706,-500.0,0.00019178,2]
[350995645,1738273844715,-500.0,0.00019178,2]
[350995646,1738273844725,-500.0,0.00019178,2]
[350995647,1738273844735,-500.0,0.00019178,2]
[350995648,1738273844745,-534.38920173,0.00019178,2]
[350995649,1738273844756,-500.0,0.00019178,2]
[350995650,1738273844766,-500.0,0.00019178,2]
[350995651,1738273844775,-135.29495867,0.00019178,2]
[350995652,1738273844789,-364.70504133,0.00019178,2]
[350995653,1738273844801,-1283.05,0.00019178,2]
[350995654,1738273844811,-500.0,0.00019178,2]
[350995655,1738273844821,-512.38146752,0.00019178,2]
[350995656,1738273844832,-500.0,0.00019178,2]
[350995657,1738273844842,-119.06349115,0.00019178,2]
[350995660,1738273845002,-369.83684874,0.00019178,2]
[350995662,1738273845012,-500.0,0.00019178,2]
[350995664,1738273845022,-500.0,0.00019178,2]
[350995668,1738273845032,-500.0,0.00019178,2]
[350995671,1738273845042,-500.0,0.00019178,2]
[350995673,1738273845052,-500.0,0.00019178,2]
[350995675,1738273845062,-500.0,0.00019178,2]
[350995677,1738273845072,-500.0,0.00019178,2]
[350995679,1738273845082,-500.0,0.00019178,2]
[350995681,1738273845091,-500.0,0.00019178,2]
[350995683,1738273845101,-500.0,0.00019178,2]
[350995685,1738273845111,-502.84443433,0.00019178,2]
[350995686,1738273845122,-500.0,0.00019178,2]
[350995689,1738273845132,-500.0,0.00019178,2]
[350995691,1738273845142,-728.44,0.00019178,2]
[350995693,1738273845152,-500.0,0.00019178,2]
[350995695,1738273845162,-626.69701753,0.00019178,2]
[350995696,1738273845172,-500.0,0.00019178,2]
[350995697,1738273845182,-272.9216842,0.00019178,2]
[350995698,1738273845196,-227.0783158,0.00019178,2]
[350995699,1738273845207,-500.0,0.00019178,2]
[350995700,1738273845218,-500.0,0.00019178,2]
[350995701,1738273845227,-500.0,0.00019178,2]
[350995702,1738273845236,-451.52926538,0.00019178,2]
[350995703,1738273845247,-500.0,0.00019178,2]
[350995704,1738273845257,-500.0,0.00019178,2]
[350995705,1738273845267,-500.0,0.00019178,2]
[350995706,1738273845277,-500.0,0.00019178,2]
[350995707,1738273845287,-500.0,0.00019178,2]
[350995708,1738273845297,-57.87286,0.00019178,2]
[350995710,1738273845430,-442.12714,0.00019178,2]
[350995711,1738273845440,-568.36,0.00019178,2]
[350995712,1738273845450,-41.51286,0.00019178,2]
[350995713,1738273845462,-458.48714,0.00019178,2]
[350995714,1738273845472,-229.45633,0.00019178,2]
[350995715,1738273845484,-270.54367,0.00019178,2]
[350995716,1738273845494,-500.0,0.00019178,2]
[350995717,1738273845504,-500.0,0.00019178,2]
[350995718,1738273845514,-500.0,0.00019178,2]
[350995719,1738273845524,-500.0,0.00019178,2]
[350995720,1738273845534,-500.0,0.00019178,2]
[350995721,1738273845545,-794.68,0.00019178,2]
[350995722,1738273845554,-1009.35,0.00019178,2]
[350995723,1738273845564,-500.0,0.00019178,2]
[350995724,1738273845574,-500.0,0.00019178,2]
[350995725,1738273845583,-500.0,0.00019178,2]
[350995726,1738273845594,-500.0,0.00019178,2]
[350995727,1738273845603,-317.47196793,0.00019178,2]
[350995728,1738273845815,-182.52803207,0.00019178,2]
[350995729,1738273845827,-500.0,0.00019178,2]
[350995730,1738273845837,-500.0,0.00019178,2]
[350995731,1738273845847,-500.0,0.00019178,2]
[350995732,1738273845858,-387.47196793,0.00019178,2]
[350995733,1738273845870,-112.52803207,0.00019178,2]
[350995734,1738273845882,-500.0,0.00019178,2]
[350995735,1738273845892,-443.81513793,0.00019178,2]
[350995736,1738273845904,-56.18486207,0.00019178,2]
[350995737,1738273845916,-500.0,0.00019178,2]
[350995738,1738273845926,-503.3277103,0.00019178,2]
[350995739,1738273845935,-334.73742763,0.00019178,2]
[350995740,1738273845948,-165.26257237,0.00019178,2]
[350995741,1738273845958,-500.0,0.00019178,2]
[350995742,1738273845969,-95.99481094,0.00019178,2]
[350995743,1738273845986,-404.00518906,0.00019178,2]
[350995744,1738273845996,-500.0,0.00019178,2]
[350995745,1738273846006,-500.0,0.00019178,2]
[350995746,1738273846017,-343.79481094,0.00019178,2]
[350995747,1738273846030,-156.20518906,0.00019178,2]
[350995748,1738273846039,-500.0,0.00019178,2]
[350995749,1738273846049,-500.0,0.00019178,2]
[350995750,1738273846058,-500.0,0.00019178,2]
[350995751,1738273846068,-623.43804833,0.00019178,2]
[350995752,1738273846080,-500.0,0.00019178,2]
[350995753,1738273846089,-500.0,0.00019178,2]
[350995754,1738273846099,-503.67318261,0.00019178,2]
[350995755,1738273846116,-156.28681739,0.00019178,2]
[350995756,1738273846125,-500.0,0.00019178,2]
[350995757,1738273846136,-500.0,0.00019178,2]
[350995758,1738273846147,-486.58906869,0.00019178,2]
[350995761,1738273846172,-17.85300737,0.00019178,2]
[350995763,1738273846181,-399.31905581,0.00019178,2]
[350995765,1738273846193,-100.68094419,0.00019178,2]
[350995767,1738273846203,-932.73,0.00019178,2]
[350995769,1738273846212,-513.21,0.00019178,2]
[350995771,1738273846222,-500.0,0.00019178,2]
[350995773,1738273846232,-730.8,0.00019178,2]
[350995775,1738273846242,-500.0,0.00019178,2]
[350995777,1738273846251,-550.08,0.00019178,2]
[350995779,1738273846261,-500.0,0.00019178,2]
[350995781,1738273846271,-500.0,0.00019178,2]
[350995783,1738273846280,-500.0,0.00019178,2]
[350995785,1738273846290,-500.0,0.00019178,2]
[350995787,1738273846300,-500.0,0.00019178,2]
[350995789,1738273846309,-507.31860064,0.00019178,2]
[350995791,1738273846319,-500.0,0.00019178,2]
[350995793,1738273846329,-500.0,0.00019178,2]
[350995795,1738273846338,-500.0,0.00019178,2]
[350995797,1738273846348,-943.12,0.00019178,2]
[350995799,1738273846357,-500.0,0.00019178,2]
[350995801,1738273846366,-500.0,0.00019178,2]
[350995803,1738273846376,-500.0,0.00019178,2]
[350995804,1738273846386,-500.0,0.00019178,2]
[350995805,1738273846395,-500.0,0.00019178,2]
[350995806,1738273846405,-500.0,0.00019178,2]
[350995807,1738273846414,-500.0,0.00019178,2]
[350995808,1738273846424,-500.0,0.00019178,2]
[350995809,1738273846435,-1631.380653,0.00019178,2]
[350995810,1738273846444,-500.0,0.00019178,2]
[350995811,1738273846454,-522.0634683,0.00019178,2]
[350995812,1738273846464,-500.0,0.00019178,2]
[350995813,1738273846473,-500.0,0.00019178,2]
[350995814,1738273846483,-152.282655,0.00019178,2]
[350995815,1738273846494,-500.0,0.00019178,2]
[350995816,1738273846504,-508.71621178,0.00019178,2]
[350995817,1738273846514,-500.0,0.00019178,2]
[350995818,1738273846524,-153.48005,0.00019178,2]
[350995819,1738273846533,-500.0,0.00019178,2]
[350995820,1738273846543,-500.0,0.00019178,2]
[350995821,1738273846552,-582.46,0.00019178,2]
[350995822,1738273846562,-500.0,0.00019178,2]
[350995823,1738273846571,-500.0,0.00019178,2]
[350995824,1738273846580,-612.23151579,0.00019178,2]
[350995825,1738273846599,-10.59944829,0.00019178,2]
[350995826,1738273846608,-323.40055171,0.00019178,2]
[350995827,1738273846619,-282.829833,0.00019178,2]
[350995828,1738273846630,-256.09224003,0.00019178,2]
[350995829,1738273846642,-503.47353271,0.00019178,2]
[350995830,1738273846658,-1619.1552,0.00019178,2]
[350995831,1738273846679,-2015.04864255,0.00019178,2]
[350995832,1738273846690,-881.43,0.00019178,2]
[350995833,1738273846700,-500.0,0.00019178,2]
[350995834,1738273846710,-500.0,0.00019178,2]
[350995835,1738273846720,-500.0,0.00019178,2]
[350995836,1738273846730,-500.0,0.00019178,2]
[350995837,1738273846741,-1722.249657,0.00019178,2]
[350995838,1738273846751,-500.0,0.00019178,2]
[350995839,1738273846763,-486.30118361,0.00019178,2]
[350995840,1738273846773,-341.5695805,0.00019178,2]
[350995841,1738273846782,-500.0,0.00019178,2]
[350995842,1738273846792,-500.0,0.00019178,2]
[350995843,1738273846803,-500.0,0.00019178,2]
[350995844,1738273846814,-500.0,0.00019178,2]
[350995845,1738273846826,-500.0,0.00019178,2]
[350995846,1738273846837,-847.63,0.00019178,2]
[350995847,1738273846848,-500.0,0.00019178,2]
[350995848,1738273846857,-519.31375831,0.00019178,2]
[350995849,1738273846868,-500.0,0.00019178,2]
[350995850,1738273846878,-738.06,0.00019178,2]
[350995851,1738273846887,-500.0,0.00019178,2]
[350995852,1738273846897,-175.96863903,0.00019178,2]
[350995853,1738273846911,-1581.57987107,0.00019178,2]
[350995854,1738273846923,-835.0914899,0.00019178,2]
[350995855,1738273846933,-157.73423786,0.00019178,2]
[350995856,1738273846943,-521.40765886,0.00019178,2]
[350995857,1738273846953,-500.0,0.00019178,2]
[350995858,1738273846963,-507.9925735,0.00019178,2]
[350995859,1738273846974,-500.0,0.00019178,2]
[350995860,1738273846983,-1045.33,0.00019178,2]
[350995861,1738273846992,-1158.04,0.00019178,2]
[350995862,1738273847001,-326.06053272,0.00019178,2]
[350995863,1738273847011,-500.0,0.00019178,2]
[350995864,1738273847021,-372.95472797,0.00019178,2]
[350995865,1738273847032,-500.0,0.00019178,2]
[350995866,1738273847042,-1288.97,0.00019178,2]
[350995867,1738273847052,-500.0,0.00019178,2]
[350995868,1738273847062,-506.49530444,0.00019178,2]
[350995869,1738273847073,-500.0,0.00019178,2]
[350995870,1738273847082,-590.15,0.00019178,2]
[350995871,1738273847092,-729.93,0.00019178,2]
[350995872,1738273847103,-505.82397171,0.00019178,2]
[350995873,1738273847113,-774.41,0.00019178,2]
[350995874,1738273847122,-500.0,0.00019178,2]
[350995875,1738273847132,-500.0,0.00019178,2]
[350995876,1738273847142,-500.0,0.00019178,2]
[350995877,1738273847152,-502.45361303,0.00019178,2]
[350995878,1738273847162,-500.0,0.00019178,2]
[350995879,1738273847172,-500.0,0.00019178,2]
[350995880,1738273847183,-500.0,0.00019178,2]
[350995881,1738273847193,-500.0,0.00019178,2]
[350995882,1738273847203,-500.0,0.00019178,2]
[350995883,1738273847213,-799.63,0.00019178,2]
[350995884,1738273847223,-500.0,0.00019178,2]
[350995885,1738273847234,-500.0,0.00019178,2]
[350995886,1738273847243,-500.0,0.00019178,2]
[350995887,1738273847253,-500.0,0.00019178,2]
[350995888,1738273847444,-1052.14,0.00019178,2]
[350995889,1738273847504,-1273.24528601,0.00019178,2]
[350995890,1738273847519,-312.97471399,0.00019178,2]
[350995891,1738273847529,-500.0,0.00019178,2]
[350995892,1738273847540,-500.0,0.00019178,2]
[350995893,1738273847549,-12.26122421,0.00019178,2]
[350995896,1738274038125,156.39,0.00010137,2]
[350995906,1738274795439,36018.0,0.00023,120]
[350995908,1738275032170,-283.85,0.00015861,2]
[350995909,1738275032181,-156.39,0.00016813,2]
[350995910,1738275032190,-164.12,0.00017644,2]
[350995911,1738275032202,-298.76,0.00017861,2]
[350995912,1738275032212,-4884.72018448,0.0001792,2]
[350995913,1738275032224,-696.57981552,0.0001792,2]
[350995914,1738275032234,-3992.31596398,0.0001792,2]
[350995915,1738275032244,-1000.0,0.00017948,2]
[350995916,1738275032254,-500.0,0.00017966,2]
[350995917,1738275032264,-646.31,0.00017966,2]
[350995918,1738275032273,-256.81,0.00018008,2]
[350995919,1738275032283,-1000.0,0.00018045,2]
[350995920,1738275032293,-900.0,0.00018068,2]
[350995922,1738275032303,-500.0,0.00018068,2]
[350995924,1738275032313,-1000.0,0.0001807,2]
[350995926,1738275032323,-157.67,0.00018082,2]
[350995928,1738275032333,-283.85,0.00018124,2]
[350995930,1738275032342,-4020.57735622,0.00018137,2]
[350995932,1738275032355,-14076.72046706,0.00018137,2]
[350995934,1738275032370,-1777.80580762,0.00018137,2]
[350995935,1738275032382,-2500.18201233,0.00018137,2]
[350995936,1738275032417,-701.26254607,0.00018137,2]
[350995937,1738275032430,-823.4518107,0.00018137,2]
[350995938,1738275032440,-283.91,0.00018144,30]
[350995939,1738275032449,-431.207,0.00018159,2]
[350995940,1738275032459,-1020.7290757,0.00018396,2]
[350995941,1738275032469,-3847.9268846,0.00018446,2]
[350995942,1738275032479,-4440.0,0.0001863,2]
[350995943,1738275032489,-164.12,0.00018821,2]
[350995944,1738275032499,-150.0,0.00018842,2]
[350995945,1738275032509,-150.0,0.00018859,2]
[350995946,1738275032519,-1082.916,0.00018899,2]
[350995947,1738275032529,-11104.01798786,0.000189,2]
[350995948,1738275032541,-1222.19419238,0.000189,2]
[350995949,1738275032573,-6424.87106117,0.000189,2]
[350996125,1738275039893,-2149.52758628,0.000189,2]
[350996140,1738275040024,-3322.91227515,0.000189,2]
[350996153,1738275040140,-525.38444365,0.000189,2]
[350996156,1738275040153,-11983.30965351,0.000189,2]
[350996158,1738275040165,-770.11364634,0.000189,2]
[350996160,1738275040176,-2592.23067423,0.000189,2]
[350996162,1738275040186,-1936.60903133,0.000189,2]
[350996164,1738275040196,-189.39688298,0.000189,2]
[350996166,1738275040205,-1936.60903124,0.00018909,2]
[350996168,1738275040217,-1936.60903124,0.00018919,2]
[350996170,1738275040226,-1936.60903124,0.00018928,2]
[350996172,1738275040237,-1936.60903124,0.00018937,2]
[350996174,1738275040248,-1936.60903124,0.00018947,2]
[350996176,1738275040257,-237.05152603,0.0001895,2]
[350996178,1738275040268,-770.1136463,0.0001895,2]
[350996180,1738275040278,-1936.60903124,0.00018956,2]
[350996182,1738275040287,-1936.60903124,0.00018966,2]
[350996184,1738275040297,-1936.60903124,0.00018975,2]
[350996187,1738275040307,-1551.31919442,0.00018984,2]
[350996189,1738275040319,-385.28983682,0.00018984,2]